[Event "Turkey IS Bank Super League 2017"]
[Site "Darica-Kocaeli"]
[Date "2017.08.04"]
[Round "11"]
[White "Tanriverdi, Enes"]
[Black "Ozen, Deniz"]
[Result "0-1"]
[ECO "D12"]
[WhiteElo "2247"]
[BlackElo "2351"]
[Annotator "NA"]
[PlyCount "126"]
[EventType "team-tourn"]
[EventCountry "TUR"]
[SourceTitle "playchess.com"]
[Source "ChessBase"]
[SourceQuality "1"]
[TimeControl "40/5400+30:1800+30"]

1. d4 {[%emt 0:00:30]} d5 {[%emt 0:01:00]} 2. c4 {[%emt 0:00:30]} c6 {[%emt 0:00:30]} 3. Nf3 {[%emt 0:00:30]} Nf6 {[%emt 0:00:00]} 4. e3 {[%emt 0:00:00]} Bf5 {[%emt 0:00:00]} 5. Nc3 {[%emt 0:00:00]} e6 {[%emt 0:00:00]} 6. Nh4 {[%emt 0:00:00]} Be4 {[%emt 0:00:00]} 7. f3 {[%emt 0:00:00]} Bg6 {[%emt 0:00:30]} 8. Qb3 {[%emt 0:00:30]} Qc7 {[%emt 0:00:30]} 9. Bd2 {[%emt 0:00:00] D12: Slav Defence: 3 Nf3 Nf6 4 e3 Bf5} Be7 {[%emt 0:00:00]} (9... a6 10. Rc1 dxc4 11. Bxc4 Nbd7 12. a4 Be7 13. g3 Bh5 14. O-O O-O 15. Ng2 Rad8 16. Nf4 Kh8 {½-½ (34) So,W (2822)-Caruana,F (2817) chess.com INT 2017}) 10. O-O-O {[%emt 0:00:00]} Nbd7 {[%emt 0:00:00]} 11. Nxg6 {[%emt 0:00:30]} hxg6 {[%emt 0:00:00]} 12. Kb1 {[%emt 0:00:30]} dxc4 {[%emt 0:00:00]} 13. Bxc4 {[%emt 0:00:30]} b5 {[%emt 0:00:30]} 14. Be2 {[%emt 0:00:30]} a6 {[%emt 0:06:30]} 15. Ne4 {[%emt 0:03:30]} O-O {[%emt 0:16:30]} 16. h4 {[%emt 0:04:30]} c5 {[%emt 0:00:30]} 17. Nxf6+ $146 {[%emt 0:04:30]} Nxf6 {[%emt 0:00:30]} 18. g4 {[%emt 0:06:30]} cxd4 {[%emt 0:00:30]} 19. e4 {[%emt 0:09:30]} Nd7 {[%emt 0:04:30]} 20. f4 {[%emt 0:01:30]} Nc5 {[%emt 0:00:30]} 21. Qf3 {[%emt 0:00:30]} Qb7 {[%emt 0:03:30]} 22. Bb4 {[%emt 0:03:30] [#]} (22. e5 $1 $11) 22... d3 $1 {[%emt 0:00:30]} 23. Bxd3 {[%emt 0:01:30]} (23. Bxc5 $17 dxe2 24. Rc1) 23... Nxd3 {[%emt 0:00:30]} 24. Bxe7 {[%emt 0:00:00] [#]} Qxe7 {[%emt 0:02:30]} ({Better is} 24... Nxb2 $1 $19 25. Bxf8 Nxd1) 25. Rxd3 {[%emt 0:00:00]} Rfd8 {[%emt 0:00:30]} 26. Rxd8+ {[%emt 0:11:30]} Rxd8 {[%emt 0:00:30]} 27. h5 {[%emt 0:02:30]} gxh5 {[%emt 0:01:30]} 28. gxh5 {[%emt 0:00:30]} Qd6 {[%emt 0:00:30]} 29. h6 {[%emt 0:01:30]} Qd3+ {[%emt 0:01:30]} 30. Qxd3 {[%emt 0:00:30]} Rxd3 {[%emt 0:00:00]} 31. f5 {[%emt 0:00:30]} exf5 {[%emt 0:02:00]} 32. exf5 {[%emt 0:00:00]} Rd6 {[%emt 0:00:00]} 33. hxg7 {[%emt 0:02:00]} Kxg7 {[%emt 0:01:00]} 34. Kc2 {[%emt 0:04:30]} Kf6 {[%emt 0:01:30]} 35. Rh5 {[%emt 0:12:30]} a5 {[%emt 0:04:30]} 36. Kc3 {[%emt 0:00:30]} Rd5 {[%emt 0:01:30]} 37. b4 {[%emt 0:00:30]} a4 {[%emt 0:00:00]} 38. Rh7 {[%emt 0:00:30]} Rxf5 {[%emt 0:02:00]} 39. Kd4 {[%emt 0:00:30]} Ke6 {[%emt 0:04:30]} 40. Rh8 {[%emt 0:00:00]} Rd5+ {[%emt 0:30:30]} 41. Ke3 {[%emt 0:01:00]} Rg5 {[%emt 0:00:00]} 42. Kd4 {[%emt 0:01:30]} Rd5+ {[%emt 0:00:00]} 43. Ke3 {[%emt 0:00:00]} f5 {[%emt 0:00:00]} 44. Re8+ {[%emt 0:00:00]} Kd7 {[%emt 0:00:00]} 45. Rf8 {[%emt 0:00:30]} Kd6 {[%emt 0:00:00]} 46. Rd8+ {[%emt 0:00:30]} Kc6 {[%emt 0:00:00]} 47. Rf8 {[%emt 0:00:00]} Re5+ {[%emt 0:00:00]} 48. Kd3 {[%emt 0:00:00]} Kd6 {[%emt 0:00:00]} 49. Rb8 {[%emt 0:01:30]} Ke6 {[%emt 0:00:00]} 50. Rb6+ {[%emt 0:00:30]} Kf7 {[%emt 0:00:00]} 51. a3 $17 {[%emt 0:03:30]} f4 {[%emt 0:00:00]} 52. Kd4 {[%emt 0:00:30]} Re3 {[%emt 0:00:00]} 53. Rxb5 {[%emt 0:00:30]} Kf6 {[%emt 0:00:00]} 54. Rb6+ {[%emt 0:02:30]} Kf5 {[%emt 0:00:00]} 55. b5 {[%emt 0:00:30]} Rxa3 {[%emt 0:00:00]} 56. Ra6 {[%emt 0:00:30]} Rb3 {[%emt 0:00:00]} 57. Kc4 {[%emt 0:00:30]} Ra3 {[%emt 0:00:00]} 58. b6 {[%emt 0:01:30]} f3 {[%emt 0:00:00]} 59. b7 {[%emt 0:03:30]} f2 {[%emt 0:00:00]} 60. Ra5+ {[%emt 0:00:30]} Kf6 {[%emt 0:00:00]} 61. b8=Q {[%emt 0:02:30]} f1=Q+ {[%emt 0:01:30]} 62. Kd5 {[%emt 0:01:30]} Qf3+ {[%emt 0:01:30]} 63. Kc5 {[%emt 0:00:30]} Rc3+ {[%emt 0:00:30]} 0-1

[Event "Turkey IS Bank Super League 2017"]
[Site "Darica-Kocaeli"]
[Date "2017.08.04"]
[Round "11"]
[White "Kiremitciyan, Ari"]
[Black "Kinsiz, Onur"]
[Result "1-0"]
[ECO "B07"]
[WhiteElo "2240"]
[BlackElo "2221"]
[Annotator "NA"]
[PlyCount "77"]
[EventType "team-tourn"]
[EventCountry "TUR"]
[SourceTitle "playchess.com"]
[Source "ChessBase"]
[SourceQuality "1"]
[TimeControl "40/5400+30:1800+30"]

1. e4 {[%emt 0:00:30]} d6 {[%emt 0:03:00]} 2. d4 {[%emt 0:00:30]} Nf6 {[%emt 0:00:30]} 3. Nc3 {[%emt 0:00:30]} e5 {[%emt 0:00:00]} 4. Nge2 {[%emt 0:00:00]} Nbd7 {[%emt 0:01:00]} 5. g3 {[%emt 0:01:00]} Be7 {[%emt 0:06:30]} 6. Bg2 {[%emt 0:00:30]} O-O {[%emt 0:01:30]} 7. O-O {[%emt 0:00:30]} c6 {[%emt 0:02:30]} 8. a4 {[%emt 0:00:30] LiveBook: 107 Games} a5 {[%emt 0:05:30] B07: Pirc Defence: Miscellaneous Systems} (8... Re8 9. h3 Bf8 10. d5 cxd5 11. exd5 h5 12. Be3 b6 13. Qd2 Ba6 14. Nb5 Nc5 15. Nec3 Qd7 16. b3 Bb7 {0-1 (39) Ghaem Maghami,E (2596)-Movsesian,S (2658) Berlin 2015}) 9. h3 {[%emt 0:00:30]} exd4 {[%emt 0:08:30]} 10. Qxd4 {[%emt 0:05:30]} Nc5 {[%emt 0:01:30]} 11. Be3 {[%emt 0:04:30]} Re8 $146 {[%emt 0:04:30]} ({Predecessor:} 11... Qc7 12. Rad1 Nfd7 13. f4 Re8 14. g4 Bf8 {1-0 (30) Narciso Dublan,M (2551)-Martin Consuegra,B (1886) San Sebastian 2013}) 12. Rad1 {[%emt 0:02:30]} Qb6 {[%emt 0:03:30]} 13. b3 {[%emt 0:08:30]} Qb4 {[%emt 0:08:30]} 14. f3 {[%emt 0:08:30]} Bf8 {[%emt 0:08:30]} 15. Bf2 {[%emt 0:03:30]} Be6 {[%emt 0:03:30]} 16. Nf4 {[%emt 0:05:30]} Rad8 {[%emt 0:10:30]} 17. g4 {[%emt 0:30:30]} Bc8 {[%emt 0:11:06]} 18. g5 {[%emt 0:01:30]} Nfd7 {[%emt 0:01:33]} 19. Qxb4 {[%emt 0:05:26]} axb4 {[%emt 0:00:07]} 20. Na2 {[%emt 0:00:07]} Na6 {[%emt 0:01:28]} 21. Be1 {[%emt 0:01:53]} c5 {[%emt 0:05:29]} 22. Nd5 {[%emt 0:00:18]} Ne5 {[%emt 0:00:24]} 23. f4 {[%emt 0:02:19]} Nc6 {[%emt 0:00:23]} 24. Bf2 {[%emt 0:00:01]} Be6 {[%emt 0:01:01]} 25. Nb6 {[%emt 0:05:57]} Nc7 {[%emt 0:04:10]} 26. f5 {[%emt 0:02:54]} Bc8 {[%emt 0:00:49]} 27. Nc1 {[%emt 0:01:10]} Ne5 {[%emt 0:04:48]} 28. Nd3 {[%emt 0:00:41]} Nxd3 {[%emt 0:02:38]} 29. Rxd3 {[%emt 0:00:30]} g6 {[%emt 0:00:28]} 30. Nxc8 {[%emt 0:04:15]} Rxc8 {[%emt 0:00:30]} 31. Bg3 {[%emt 0:00:13]} b5 {[%emt 0:00:20]} 32. Bxd6 {[%emt 0:03:04]} Bxd6 {[%emt 0:01:09]} 33. Rxd6 {[%emt 0:00:33]} bxa4 {[%emt 0:00:16]} 34. bxa4 {[%emt 0:00:00]} Rb8 $18 {[%emt 0:00:52]} (34... Rf8 $142 35. Rfd1 Rfe8) 35. Rd7 {[%emt 0:00:05]} Rbc8 {[%emt 0:00:27]} 36. e5 {[%emt 0:02:27]} Rxe5 {[%emt 0:00:30]} 37. Bb7 {[%emt 0:00:30]} Rb8 {[%emt 0:00:30]} 38. Rxc7 {[%emt 0:00:30]} gxf5 {[%emt 0:00:30]} 39. a5 {[%emt 0:00:00]} 1-0

[Event "Turkey IS Bank Super League 2017"]
[Site "Darica-Kocaeli"]
[Date "2017.08.04"]
[Round "11"]
[White "Tasdogen, Dincer"]
[Black "Ozenir, Ekin Baris"]
[Result "1-0"]
[ECO "B08"]
[WhiteElo "2215"]
[BlackElo "2098"]
[Annotator "ChessBase"]
[PlyCount "103"]
[EventType "team-tourn"]
[EventCountry "TUR"]
[SourceTitle "playchess.com"]
[Source "ChessBase"]
[SourceQuality "1"]
[TimeControl "40/5400+30:1800+30"]

1. e4 {[%emt 0:00:30]} Nc6 {[%emt 0:01:00]} 2. Nf3 {[%emt 0:00:30]} d6 {[%emt 0:00:30]} 3. d4 {[%emt 0:00:00]} Nf6 {[%emt 0:00:30]} 4. Nc3 {[%emt 0:00:00]} g6 {[%emt 0:00:30]} 5. Bb5 {[%emt 0:00:00]} a6 {[%emt 0:00:00]} 6. Bxc6+ {[%emt 0:00:00]} bxc6 {[%emt 0:00:00]} 7. h3 {[%emt 0:00:30]} Bg7 {[%emt 0:01:30]} 8. Be3 {[%emt 0:00:00]} O-O {[%emt 0:00:30]} 9. O-O {[%emt 0:00:00]} Bb7 {[%emt 0:03:30]} 10. Qd3 {[%emt 0:08:30]} Nd7 {[%emt 0:04:30]} 11. Rad1 {[%emt 0:05:30]} a5 {[%emt 0:05:30]} 12. Rfe1 {[%emt 0:13:30]} e5 {[%emt 0:20:30]} 13. dxe5 {[%emt 0:08:30]} Nxe5 {[%emt 0:01:30]} 14. Nxe5 {[%emt 0:00:30]} Bxe5 {[%emt 0:00:00]} 15. Bd4 {[%emt 0:09:30]} Qf6 {[%emt 0:04:00]} 16. Bxe5 {[%emt 0:06:30]} Qxe5 {[%emt 0:00:30]} 17. Qd4 {[%emt 0:01:30]} f6 {[%emt 0:05:30]} 18. b3 {[%emt 0:03:30]} Kg7 {[%emt 0:07:30]} 19. Qe3 {[%emt 0:12:30]} Rfe8 {[%emt 0:06:30]} 20. f4 {[%emt 0:08:30]} Qe6 {[%emt 0:05:30]} 21. e5 {[%emt 0:09:08]} fxe5 {[%emt 0:17:15]} 22. fxe5 {[%emt 0:00:06]} c5 {[%emt 0:02:41]} 23. Nb5 {[%emt 0:06:39]} Rac8 {[%emt 0:03:45]} 24. Qc3 {[%emt 0:01:04]} dxe5 {[%emt 0:02:17]} 25. Qxc5 {[%emt 0:00:04]} Re7 {[%emt 0:02:36]} 26. Re3 {[%emt 0:03:42]} Kg8 {[%emt 0:03:59]} 27. Rde1 {[%emt 0:01:28]} e4 {[%emt 0:00:08]} 28. Nc3 {[%emt 0:00:29]} Qd6 {[%emt 0:01:43]} 29. Qc4+ {[%emt 0:00:43]} Kg7 {[%emt 0:00:24]} 30. Nxe4 {[%emt 0:00:46]} Bxe4 {[%emt 0:00:34]} 31. Rxe4 {[%emt 0:00:04]} Rce8 {[%emt 0:00:36]} 32. Qc3+ {[%emt 0:00:24]} Kg8 {[%emt 0:00:45]} 33. Qc4+ {[%emt 0:00:30]} Kg7 {[%emt 0:00:00]} 34. Qc3+ {[%emt 0:00:34]} Kg8 {[%emt 0:00:19]} 35. Rxe7 {[%emt 0:00:30]} Rxe7 {[%emt 0:00:00]} 36. Qxa5 {[%emt 0:00:16]} Qd4+ {[%emt 0:01:02]} 37. Kh1 {[%emt 0:00:32]} Rd7 {[%emt 0:00:30]} 38. Qe5 {[%emt 0:00:30]} Qd2 {[%emt 0:00:55]} 39. Qe8+ {[%emt 0:00:59]} Kg7 {[%emt 0:00:11]} 40. Re7+ {[%emt 0:00:00]} Rxe7 {[%emt 0:30:37]} 41. Qxe7+ {[%emt 0:01:02]} Kh6 {[%emt 0:00:30]} 42. Qxc7 {[%emt 0:00:30]} Qc1+ {[%emt 0:00:00]} 43. Kh2 {[%emt 0:00:30]} Qa3 {[%emt 0:00:00]} 44. c4 {[%emt 0:01:30]} Qxa2 {[%emt 0:00:00]} 45. b4 {[%emt 0:00:00]} Qb2 {[%emt 0:00:00]} 46. b5 {[%emt 0:00:00]} g5 {[%emt 0:00:00]} 47. b6 {[%emt 0:01:30]} g4 {[%emt 0:00:00]} 48. Qf4+ {[%emt 0:00:30]} Kh5 {[%emt 0:00:00]} 49. Qxg4+ {[%emt 0:00:30]} Kh6 {[%emt 0:00:00]} 50. Qf4+ {[%emt 0:00:30]} Kh5 {[%emt 0:00:00]} 51. Qf3+ {[%emt 0:00:00]} Kh6 {[%emt 0:00:00]} 52. b7 {[%emt 0:00:00]} 1-0

[Event "Turkey IS Bank Super League 2017"]
[Site "Darica-Kocaeli"]
[Date "2017.08.04"]
[Round "11"]
[White "Topak, Engin"]
[Black "Gulden, Egemen"]
[Result "1-0"]
[ECO "D02"]
[WhiteElo "2192"]
[BlackElo "2044"]
[Annotator "NA"]
[PlyCount "73"]
[EventType "team-tourn"]
[EventCountry "TUR"]
[SourceTitle "playchess.com"]
[Source "ChessBase"]
[SourceQuality "1"]
[TimeControl "40/5400+30:1800+30"]

1. d4 {[%emt 0:00:30]} d5 {[%emt 0:02:00]} 2. Nf3 {[%emt 0:00:30]} Nf6 {[%emt 0:01:30]} 3. c4 {[%emt 0:00:30]} e6 {[%emt 0:00:00]} 4. g3 {[%emt 0:00:00]} b6 {[%emt 0:01:00]} 5. Bg2 {[%emt 0:00:00]} Bb7 {[%emt 0:00:30]} 6. O-O {[%emt 0:03:30]} Nbd7 {[%emt 0:00:30]} 7. Nbd2 {[%emt 0:04:30]} Bd6 {[%emt 0:00:30]} 8. b3 {[%emt 0:00:30]} O-O {[%emt 0:02:30]} 9. Bb2 {[%emt 0:00:00]} Qe7 {[%emt 0:00:30] D02: 1 d4 d5 2 Nf3 sidelines, including 2...Nf6 3 g3 and 2...Nf6 3 Bf4} 10. Qc2 {[%emt 0:07:00]} (10. Rc1 c5 11. e3 Rfd8 {½-½ (42) Sohal,T (2199)-Vibbert,S (2315) Vancouver 2012}) 10... c5 $146 {[%emt 0:03:30]} ({Predecessor:} 10... Rac8 11. a4 Rfe8 12. a5 a6 13. e3 Bb4 14. axb6 cxb6 15. Ne5 Nxe5 16. dxe5 Nd7 17. f4 {½-½ (56) Berglund,J (1986)-Flermoen,P (1508) Hammerfest 2007}) 11. cxd5 {[%emt 0:02:30]} exd5 {[%emt 0:00:30]} 12. dxc5 {[%emt 0:00:00]} bxc5 {[%emt 0:01:30]} 13. Rfe1 {[%emt 0:07:00]} Ne4 {[%emt 0:13:30]} 14. Nxe4 {[%emt 0:01:30]} dxe4 {[%emt 0:00:30]} 15. Nd2 {[%emt 0:00:30]} f5 {[%emt 0:01:30]} 16. Nc4 {[%emt 0:00:30]} Bc7 {[%emt 0:00:30]} 17. e3 {[%emt 0:01:30]} Ba6 {[%emt 0:21:30]} 18. Red1 {[%emt 0:04:30]} Kh8 {[%emt 0:04:30]} 19. Rac1 {[%emt 0:00:30]} Rac8 {[%emt 0:04:30]} 20. Bf1 {[%emt 0:11:30]} Bb7 {[%emt 0:06:30]} 21. Qc3 {[%emt 0:05:30]} Rf6 {[%emt 0:06:30]} 22. Rd2 $16 {[%emt 0:02:30]} f4 {[%emt 0:16:41]} 23. Rcd1 {[%emt 0:05:30]} Nf8 {[%emt 0:06:17]} 24. Nd6 {[%emt 0:01:30]} Bxd6 {[%emt 0:03:08]} 25. Rxd6 {[%emt 0:00:30]} fxg3 {[%emt 0:01:25]} 26. Rxf6 {[%emt 0:01:30]} gxh2+ {[%emt 0:00:05]} 27. Kh1 {[%emt 0:00:30]} Ng6 {[%emt 0:01:56]} 28. Rxg6 {[%emt 0:00:30]} hxg6 {[%emt 0:00:30]} 29. Qxg7+ {[%emt 0:00:00]} Qxg7 {[%emt 0:00:00]} 30. Bxg7+ {[%emt 0:00:00]} Kxg7 {[%emt 0:00:19]} 31. Rd7+ {[%emt 0:00:30]} Kh6 {[%emt 0:00:00]} 32. Rxb7 {[%emt 0:00:30]} Rf8 {[%emt 0:00:00]} 33. Bg2 {[%emt 0:03:30]} Rxf2 {[%emt 0:00:11]} 34. Rxa7 {[%emt 0:00:30]} Re2 {[%emt 0:00:00]} 35. Bxe4 {[%emt 0:00:30]} Rxe3 {[%emt 0:00:21]} 36. Bg2 {[%emt 0:00:00]} g5 {[%emt 0:00:15]} 37. Kxh2 {[%emt 0:00:00]} 1-0

[Event "Turkey IS Bank Super League 2017"]
[Site "Darica-Kocaeli"]
[Date "2017.08.04"]
[Round "11"]
[White "Yazici, Ugur Doga"]
[Black "Sevgi, Volkan"]
[Result "1-0"]
[ECO "B12"]
[WhiteElo "2144"]
[BlackElo "2199"]
[Annotator "ChessBase"]
[PlyCount "133"]
[EventType "team-tourn"]
[EventCountry "TUR"]
[SourceTitle "playchess.com"]
[Source "ChessBase"]
[SourceQuality "1"]
[TimeControl "40/5400+30:1800+30"]

1. e4 {[%emt 0:00:30]} c6 {[%emt 0:05:00]} 2. d4 {[%emt 0:00:30]} d5 {[%emt 0:00:00]} 3. e5 {[%emt 0:00:30]} Na6 {[%emt 0:00:00]} 4. c3 {[%emt 0:00:30]} Nc7 {[%emt 0:00:30]} 5. Bd3 {[%emt 0:00:30]} g6 {[%emt 0:00:30]} 6. Nf3 {[%emt 0:00:30]} Nh6 {[%emt 0:00:30]} 7. Nbd2 {[%emt 0:00:30]} Bg7 {[%emt 0:00:30]} 8. Nf1 {[%emt 0:00:30]} Bg4 {[%emt 0:06:30]} 9. Ne3 {[%emt 0:03:30]} Bxf3 {[%emt 0:00:30]} 10. Qxf3 {[%emt 0:00:00]} f6 {[%emt 0:02:30]} 11. exf6 {[%emt 0:02:00]} exf6 {[%emt 0:00:30]} 12. h4 {[%emt 0:05:30]} f5 {[%emt 0:06:30]} 13. Bd2 {[%emt 0:08:30]} Qd6 {[%emt 0:04:30]} 14. O-O-O {[%emt 0:01:30]} O-O-O {[%emt 0:00:00]} 15. g4 {[%emt 0:07:30]} fxg4 {[%emt 0:05:00]} 16. Nxg4 {[%emt 0:00:00]} Rhf8 {[%emt 0:00:30]} 17. Qh3 {[%emt 0:00:00]} Nf5 {[%emt 0:00:30]} 18. Ne3 {[%emt 0:04:30]} Qe6 {[%emt 0:21:30]} 19. Nxf5 {[%emt 0:09:30]} gxf5 {[%emt 0:00:00]} 20. Rde1 {[%emt 0:01:30]} Qf7 {[%emt 0:04:00]} 21. Rhg1 {[%emt 0:00:30]} Ne8 {[%emt 0:12:30]} 22. Bg5 {[%emt 0:01:30]} Rd7 {[%emt 0:07:30]} 23. Rxe8+ {[%emt 0:09:30]} Qxe8 {[%emt 0:07:51]} 24. Bxf5 {[%emt 0:00:30]} Rxf5 {[%emt 0:01:12]} 25. Qxf5 {[%emt 0:00:30]} Qf8 {[%emt 0:00:10]} 26. Qxf8+ {[%emt 0:00:30]} Bxf8 {[%emt 0:00:12]} 27. Kd2 {[%emt 0:01:30]} Rf7 {[%emt 0:00:35]} 28. Ke2 {[%emt 0:01:30]} Kd7 {[%emt 0:02:20]} 29. Rg3 {[%emt 0:01:30]} Rf5 {[%emt 0:01:36]} 30. Rf3 {[%emt 0:05:30]} Ke6 {[%emt 0:00:30]} 31. Re3+ {[%emt 0:00:30]} Kf7 {[%emt 0:00:00]} 32. Rg3 {[%emt 0:04:30]} Bd6 {[%emt 0:02:43]} 33. Rg1 {[%emt 0:00:30]} Bf8 {[%emt 0:01:28]} 34. f3 {[%emt 0:02:30]} h6 {[%emt 0:00:52]} 35. Be3 {[%emt 0:00:30]} Rh5 {[%emt 0:00:48]} 36. Rg4 {[%emt 0:00:30]} Be7 {[%emt 0:00:00]} 37. Bf2 {[%emt 0:00:30]} Rf5 {[%emt 0:00:05]} 38. Ke3 {[%emt 0:00:30]} h5 {[%emt 0:01:59]} 39. Rg1 {[%emt 0:00:30]} Bf8 {[%emt 0:01:04]} 40. Ke2 {[%emt 0:00:00]} Be7 {[%emt 0:02:35]} 41. Bg3 {[%emt 0:07:00]} Bf6 {[%emt 0:01:30]} 42. a4 {[%emt 0:00:30]} Ke6 {[%emt 0:05:30]} 43. Ra1 {[%emt 0:02:30]} Bd8 {[%emt 0:00:30]} 44. Rg1 {[%emt 0:01:30]} Rf8 {[%emt 0:02:30]} 45. Be5 {[%emt 0:02:30]} Bxh4 {[%emt 0:07:30]} 46. Rh1 {[%emt 0:01:30]} Bg5 {[%emt 0:00:30]} 47. Rxh5 {[%emt 0:00:30]} Bc1 {[%emt 0:00:00]} 48. b3 {[%emt 0:01:30]} b5 {[%emt 0:08:21]} 49. Rh7 {[%emt 0:01:30]} Rf7 {[%emt 0:01:08]} 50. Rh1 {[%emt 0:02:30]} Bg5 {[%emt 0:01:40]} 51. axb5 {[%emt 0:00:30]} cxb5 {[%emt 0:00:09]} 52. Ra1 {[%emt 0:00:00]} Bd8 {[%emt 0:02:57]} 53. Rh1 {[%emt 0:07:00]} Be7 {[%emt 0:02:53]} 54. Rh6+ {[%emt 0:00:30]} Kf5 {[%emt 0:00:01]} 55. Ra6 {[%emt 0:01:30]} Bf8 {[%emt 0:00:42]} 56. Kd3 {[%emt 0:01:30]} Kg5 {[%emt 0:00:39]} 57. f4+ {[%emt 0:03:30]} Kf5 {[%emt 0:00:13]} 58. c4 {[%emt 0:00:30]} dxc4+ {[%emt 0:00:30]} 59. bxc4 {[%emt 0:00:30]} b4 {[%emt 0:00:30]} 60. c5 {[%emt 0:00:30]} b3 {[%emt 0:00:30]} 61. Kc3 {[%emt 0:00:30]} Rb7 {[%emt 0:02:16]} 62. Kb2 {[%emt 0:00:30]} Be7 {[%emt 0:00:16]} 63. c6 {[%emt 0:00:30]} Rb4 {[%emt 0:00:10]} 64. c7 {[%emt 0:00:30]} Rc4 {[%emt 0:00:36]} 65. Kxb3 {[%emt 0:00:30]} Rc1 {[%emt 0:00:30]} 66. d5 {[%emt 0:00:00]} Bh4 {[%emt 0:00:00]} 67. Rc6 {[%emt 0:00:00]} 1-0

[Event "Turkey IS Bank Super League 2017"]
[Site "Darica-Kocaeli"]
[Date "2017.08.04"]
[Round "11"]
[White "Ererdem, Gani Eren"]
[Black "Bayyurt, Izge"]
[Result "1-0"]
[ECO "E11"]
[WhiteElo "2090"]
[BlackElo "1839"]
[Annotator "NA"]
[PlyCount "73"]
[EventType "team-tourn"]
[EventCountry "TUR"]
[SourceTitle "playchess.com"]
[Source "ChessBase"]
[SourceQuality "1"]
[TimeControl "40/5400+30:1800+30"]

1. d4 {[%emt 0:02:30]} Nf6 {[%emt 0:01:00]} 2. Nf3 {[%emt 0:01:30]} e6 {[%emt 0:00:30]} 3. c4 {[%emt 0:03:30]} Bb4+ {[%emt 0:03:30]} 4. Nbd2 {[%emt 0:01:30]} c5 {[%emt 0:02:30]} 5. dxc5 {[%emt 0:07:30]} Bxc5 {[%emt 0:04:30]} 6. a3 {[%emt 0:01:30]} a5 {[%emt 0:05:30]} 7. e3 {[%emt 0:02:30]} Nc6 {[%emt 0:02:30]} 8. Qc2 {[%emt 0:01:30]} O-O {[%emt 0:04:30]} 9. b3 {[%emt 0:09:30]} d5 {[%emt 0:05:30]} 10. cxd5 {[%emt 0:10:30]} Qxd5 {[%emt 0:00:30]} 11. Bc4 {[%emt 0:00:30]} (11. Bb2 $5 {[%cal Re3e4]} Be7 12. Be2 $14) 11... Qh5 {[%emt 0:00:30]} 12. Bb2 {[%emt 0:04:30]} Be7 $14 {[%emt 0:01:30]} 13. O-O {[%emt 0:06:30]} Bd7 {[%emt 0:15:30]} 14. Rad1 {[%emt 0:12:30]} Rac8 {[%emt 0:02:30]} 15. Ne4 {[%emt 0:08:30]} Nd5 {[%emt 0:07:30]} 16. Ng3 {[%emt 0:05:37]} Qh6 {[%emt 0:00:30]} 17. Qe2 {[%emt 0:04:54]} Nb6 {[%emt 0:01:30]} 18. Bd3 {[%emt 0:00:18]} Bf6 {[%emt 0:01:30]} 19. Bc1 {[%emt 0:00:58]} g6 {[%emt 0:01:30]} 20. e4 {[%emt 0:03:47]} Qg7 {[%emt 0:00:00]} 21. Be3 {[%emt 0:00:00]} Nd4 {[%emt 0:08:00]} 22. Nxd4 {[%emt 0:00:32]} Bxd4 {[%emt 0:00:00]} 23. e5 {[%emt 0:00:12]} Bxe3 {[%emt 0:01:00]} 24. Qxe3 {[%emt 0:00:03]} Nd5 {[%emt 0:00:30]} 25. Qd4 {[%emt 0:00:16]} Bc6 {[%emt 0:02:30]} 26. Ne4 {[%emt 0:00:09]} Rfd8 {[%emt 0:01:30]} 27. Bc4 {[%emt 0:00:27]} b5 {[%emt 0:01:30]} 28. Bxd5 {[%emt 0:00:23]} Bxd5 {[%emt 0:01:30]} 29. Nf6+ {[%emt 0:01:34]} Kh8 {[%emt 0:00:30]} 30. Rd3 {[%emt 0:00:09]} h5 {[%emt 0:13:51]} 31. Qf4 {[%emt 0:06:20]} b4 {[%emt 0:03:06]} 32. axb4 {[%emt 0:00:48]} axb4 {[%emt 0:00:04]} 33. Rh3 {[%emt 0:00:54]} Rc3 {[%emt 0:02:43]} 34. Rh4 {[%emt 0:01:55]} Rxb3 {[%emt 0:01:38]} 35. Qg5 {[%emt 0:00:24]} Rc8 {[%emt 0:01:53]} 36. Rxh5+ {[%emt 0:00:49]} gxh5 {[%emt 0:00:16]} 37. Qxh5+ {[%emt 0:00:00]} 1-0

[Event "Turkey IS Bank Super League 2017"]
[Site "Darica-Kocaeli"]
[Date "2017.08.04"]
[Round "11"]
[White "Arda, Cagil Irmak"]
[Black "Incecik, Seyma Zeynep"]
[Result "1-0"]
[ECO "B01"]
[WhiteElo "2080"]
[BlackElo "1804"]
[Annotator "NA"]
[PlyCount "61"]
[EventType "team-tourn"]
[EventCountry "TUR"]
[SourceTitle "playchess.com"]
[Source "ChessBase"]
[SourceQuality "1"]
[TimeControl "40/5400+30:1800+30"]

1. e4 {[%emt 0:01:30]} d5 {[%emt 0:01:00]} 2. exd5 {[%emt 0:00:30]} Qxd5 {[%emt 0:01:30]} 3. Nc3 {[%emt 0:00:00]} Qa5 {[%emt 0:00:00]} 4. d4 {[%emt 0:00:00]} c6 {[%emt 0:00:00]} 5. Bc4 {[%emt 0:00:30]} Nf6 {[%emt 0:00:30]} 6. Bd2 {[%emt 0:00:00]} Bf5 {[%emt 0:00:30]} 7. Nf3 {[%emt 0:00:00]} e6 {[%emt 0:00:30]} 8. Qe2 {[%emt 0:01:30]} Bb4 {[%emt 0:05:30]} 9. O-O-O {[%emt 0:00:30]} Nbd7 {[%emt 0:01:30]} 10. Ne5 {[%emt 0:01:30]} Nxe5 {[%emt 0:06:30]} 11. dxe5 {[%emt 0:00:30]} Nd5 {[%emt 0:02:30]} 12. Bxd5 {[%emt 0:00:30]} exd5 {[%emt 0:01:30] B01: Scandinavian Defence} 13. g4 {[%emt 0:04:30] LiveBook: 12 Games} (13. a3 Bxa3 14. bxa3 Qxa3+ 15. Kb1 Qb3+ 16. Ka1 Bxc2 17. Rc1 d4 18. Na2 Bf5 19. Bb4 O-O-O 20. Bd6 {1-0 (55) Gunnarsson,J (2450)-Tristan,L (2458) chess.com INT 2017}) 13... Bd7 {[%emt 0:02:30]} 14. a3 {[%emt 0:10:30] [#]} ({Better is} 14. f4 $11) 14... Be7 $146 {[%emt 0:14:30]} (14... Bxa3 $1 $15 {[%mdl 512]} 15. f4 (15. bxa3 Qxa3+) 15... Be7) ({Predecessor:} 14... Bxc3 15. Bxc3 Qb6 16. f4 O-O-O 17. f5 Rde8 18. Rhe1 Rhg8 19. Qf3 g6 20. e6 fxe6 {1-0 (40) Polok,K (2213)-Percivaldi,M (2310) Warsaw 2015}) 15. Be1 {[%emt 0:19:30]} Bg5+ {[%emt 0:08:30]} 16. Kb1 {[%emt 0:00:30]} Qc7 {[%emt 0:00:30]} 17. Rd4 {[%emt 0:00:30]} Be7 {[%emt 0:11:30]} 18. f4 {[%emt 0:04:30]} Qb6 {[%emt 0:08:30]} 19. Bf2 $11 {[%emt 0:07:30]} Bxa3 {[%emt 0:16:01]} 20. Na4 {[%emt 0:03:30]} Qb5 {[%emt 0:02:22]} 21. Qxb5 {[%emt 0:11:30]} cxb5 {[%emt 0:00:30]} 22. bxa3 {[%emt 0:00:30]} bxa4 {[%emt 0:00:00]} 23. f5 {[%emt 0:01:30]} h5 {[%emt 0:10:09]} 24. Re1 {[%emt 0:01:30]} hxg4 {[%emt 0:02:09]} 25. e6 {[%emt 0:01:30]} fxe6 {[%emt 0:00:37]} 26. fxe6 {[%emt 0:00:30]} Bc6 {[%emt 0:00:31]} 27. Rxg4 {[%emt 0:04:30]} Rh7 {[%emt 0:03:10]} 28. Rf4 {[%emt 0:05:24]} O-O-O {[%emt 0:00:50]} 29. Bg3 {[%emt 0:00:24]} Re8 {[%emt 0:00:28]} 30. Rf7 {[%emt 0:00:16]} b6 {[%emt 0:00:44]} 31. Rc7+ {[%emt 0:00:08]} 1-0